bitfinex-derivatives/quotes_ETHF0:USTF0_20240910
["timestamp","ask_amount","ask_price","bid_price","bid_amount"]
[1725993674848,0.41899,2386.6,2386.3,4.02]
[1725993675044,1.04731,2387.0,2386.3,4.02]
[1725993675247,0.364,2387.3,2386.6,4.02]
[1725993675448,0.3859,2387.8,2387.2,0.41887]
[1725993675750,0.41884,2387.5,2387.2,4.02]
[1725993675949,0.41884,2387.5,2387.2,4.43887]
[1725993676141,0.41882,2387.6,2387.3,6.5]
[1725993676451,0.41883,2387.5,2387.3,6.5]
[1725993676954,0.41883,2387.5,2387.3,10.6888]
[1725993677143,0.4188,2387.7,2387.3,10.6888]
[1725993677348,0.41877,2387.8,2387.3,6.5]
[1725993677544,0.3791,2388.0,2387.3,6.91885]
[1725993677745,0.41878,2387.8,2387.4,0.41883]
[1725993678457,0.41879,2387.7,2387.4,0.41883]
[1725993678672,0.3791,2388.0,2387.3,6.5]
[1725993678673,0.41878,2387.8,2387.3,6.5]
[1725993678845,1.46595,2387.4,2387.3,6.5]
[1725993679046,1.46595,2387.4,2386.8,0.41894]
[1725993679047,1.04711,2387.4,2386.8,0.41894]
[1725993679242,0.4189,2387.1,2386.7,1.20794765]
[1725993679443,1.0469,2387.9,2386.7,0.78899765]
[1725993679750,0.41895,2386.8,2386.6,6.5]
[1725993679945,0.41897,2386.7,2386.3,4.43903]
[1725993680155,0.41897,2386.7,2386.3,4.02]
[1725993680346,0.41898,2386.6,2386.3,10.52]
[1725993680556,0.419,2386.5,2386.3,6.5]
[1725993680855,0.41888,2387.2,2386.4,9.0453522]
[1725993681153,1.04664,2388.5,2387.1,4.53]
[1725993681359,0.41872,2388.1,2387.6,0.4188]
[1725993681549,0.41871,2388.2,2387.7,0.41878]
[1725993681744,0.3737,2388.4,2387.4,4.53]
[1725993681945,0.3737,2388.4,2387.7,0.41879]
[1725993681946,0.41871,2388.2,2387.7,0.41879]
[1725993682166,1.4204,2388.4,2387.5,0.41881]
[1725993682455,0.41871,2388.2,2387.7,0.41878]
[1725993682646,0.41872,2388.1,2387.4,4.53]
[1725993682847,0.3737,2388.4,2387.4,4.53]
[1725993683054,0.41872,2388.1,2387.4,4.53]
[1725993683247,0.3737,2388.4,2387.4,4.53]
[1725993683248,0.41871,2388.2,2387.4,4.53]
[1725993683449,0.41871,2388.2,2387.7,0.41879]
[1725993683652,1.04665,2388.5,2387.4,4.53]
[1725993683855,1.04665,2388.5,2387.2,6.9911]
[1725993683856,1.04645,2388.9,2387.8,4.53]
[1725993684158,0.41863,2388.6,2388.0,0.41872]
[1725993684456,0.41862,2388.7,2387.8,4.53]
[1725993684654,1.79274,2389.0,2388.1,0.41871]
[1725993684854,1.79274,2389.0,2387.8,4.53]
[1725993684855,1.79274,2389.0,2388.2,0.4187]
[1725993685055,1.79274,2389.0,2387.8,4.53]
[1725993685249,0.41861,2388.8,2388.2,0.41869]
[1725993685450,0.4186,2388.8,2387.8,4.53]
[1725993685757,0.41861,2388.7,2388.2,0.41869]
[1725993685958,1.04616,2389.6,2388.2,4.53]
[1725993686255,0.2,2390.0,2389.3,4.53]
[1725993686463,0.2,2390.0,2389.4,4.53]
[1725993686758,0.6184,2390.0,2389.5,6.5]
[1725993686952,0.4184,2389.9,2389.5,6.5]
[1725993687252,0.41841,2389.9,2389.5,6.5]
[1725993687456,0.2,2390.0,2389.5,6.5]
[1725993687955,0.61839,2390.0,2389.5,6.5]
[1725993688157,0.2,2390.0,2389.5,6.5]
[1725993688360,0.2,2390.0,2389.8,4.53]
[1725993688551,0.61839,2390.0,2389.8,4.53]
[1725993688752,0.41843,2389.8,2389.5,11.03]
[1725993688946,0.2,2390.0,2389.5,6.5]
[1725993689147,0.41848,2389.5,2389.1,4.53]
[1725993689357,0.3985,2389.9,2388.8,4.53]
[1725993689553,1.0461,2389.7,2388.9,6.5]
[1725993689753,0.41848,2389.5,2389.0,0.41856]
[1725993690055,0.4185,2389.4,2388.9,6.91857]
[1725993690263,0.41853,2389.2,2388.9,6.5]
[1725993690556,1.04614,2389.6,2388.9,6.5]
[1725993690751,0.41851,2389.3,2388.9,6.5]
[1725993690951,0.3861,2389.8,2388.9,6.5]
[1725993690952,0.41855,2389.1,2388.9,6.5]
[1725993691146,0.41853,2389.2,2388.9,6.5]
[1725993691361,0.41854,2389.1,2388.9,6.5]
[1725993691659,1.43217,2389.8,2388.9,6.5]
[1725993691849,1.04614,2389.6,2388.9,6.5]
[1725993692352,0.3861,2389.8,2388.5,4.53]
[1725993692554,1.04637,2389.1,2388.5,4.53]
[1725993692858,1.04637,2389.1,2388.5,11.03]
[1725993693157,1.0461,2389.7,2388.5,11.03]
[1725993693347,1.04615,2389.6,2388.5,11.03]
[1725993693556,0.41854,2389.2,2388.7,0.4186]
[1725993693856,0.41852,2389.3,2388.8,0.41859]
[1725993694158,0.41853,2389.2,2388.8,0.41859]
[1725993694452,1.04623,2389.4,2388.6,0.41862]
[1725993694654,0.41856,2389.0,2388.6,0.41862]
[1725993694956,0.41855,2389.1,2388.6,0.41862]
[1725993695164,1.04623,2389.4,2388.6,0.41862]
[1725993695165,0.41856,2389.0,2388.6,0.41862]
[1725993695858,0.41855,2389.1,2388.7,0.41861]
[1725993696055,0.41855,2389.1,2388.5,11.03]
[1725993696258,0.41856,2389.0,2388.7,0.4186]
[1725993696556,1.04627,2389.3,2388.7,0.41861]
[1725993696762,0.41857,2389.0,2388.5,11.03]
[1725993696959,0.41857,2389.0,2388.6,0.41862]
[1725993697262,0.41857,2389.0,2388.7,0.41861]
[1725993697558,1.04627,2389.3,2388.6,0.41863]
[1725993697756,1.04632,2389.2,2388.5,11.03]
[1725993697960,0.41854,2389.1,2388.8,0.41859]
[1725993698257,0.41854,2389.1,2388.5,11.03]
[1725993698464,0.3861,2389.8,2388.8,4.53]
[1725993698465,1.43217,2389.8,2388.8,4.53]
[1725993698756,0.7918,2389.9,2389.5,4.53]
[1725993698757,0.3985,2389.9,2389.5,4.53]
[1725993698961,0.2,2390.0,2389.7,0.41843]
[1725993698962,0.61839,2390.0,2389.7,0.41843]
[1725993699160,0.2,2390.0,2389.5,4.53]
[1725993699351,0.2,2390.0,2389.6,6.5]
[1725993699752,0.61839,2390.0,2389.7,0.41843]
[1725993700050,0.4184,2389.9,2389.6,6.91844]
[1725993700248,0.2,2390.0,2389.6,6.5]
[1725993700451,0.2,2390.0,2389.9,0.4184]
[1725993700657,0.41825,2390.8,2389.8,5.57606]
[1725993700855,1.04557,2390.9,2390.3,4.53]
[1725993701059,0.41827,2390.7,2390.3,4.53]
[1725993701262,0.3855,2391.1,2390.3,4.53]
[1725993701454,0.41826,2390.8,2390.4,0.41831]
[1725993701860,0.3855,2391.1,2390.3,4.53]
[1725993701861,0.41824,2390.9,2390.5,0.41829]
[1725993702056,0.41817,2391.3,2390.9,0.41821]
[1725993702260,0.41816,2391.3,2391.0,4.53]
[1725993702468,0.3945,2391.4,2391.0,4.53]
[1725993702653,0.41637351,2392.1,2391.3,4.53]
[1725993702654,1.04506,2392.1,2391.3,4.53]
[1725993702853,0.3872,2392.1,2391.3,4.53]
[1725993703566,0.4005,2392.8,2391.3,4.53]
[1725993703567,1.18794112,2392.3,2392.2,0.418]
[1725993703761,1.18794112,2392.3,2391.3,4.53]
[1725993703762,0.41807,2391.9,2391.3,4.53]
[1725993703956,1.18794112,2392.3,2391.3,4.53]
[1725993704270,1.18794112,2392.3,2391.7,4.53]
[1725993704755,0.41805,2391.9,2391.8,6.5]
[1725993704958,0.4181,2391.6,2391.0,4.53]
[1725993705156,0.41813,2391.5,2391.0,4.53]
[1725993705362,0.41813,2391.5,2390.7,0.491]
[1725993705363,0.41813,2391.5,2390.7,11.44825]
[1725993705561,1.18794112,2392.3,2391.0,4.53]
[1725993705767,0.41811,2391.6,2391.0,4.53]
[1725993706060,1.04506,2392.1,2391.0,4.53]
[1725993706270,0.4181,2391.7,2391.0,4.53]
[1725993706562,1.0451,2392.0,2391.0,4.53]
[1725993706768,0.4005,2391.6,2391.0,4.53]
[1725993706963,0.41819,2391.2,2390.7,11.03]
[1725993707663,0.41816,2391.3,2390.7,11.03]
[1725993707966,0.41815,2391.4,2390.7,11.44826]
[1725993708156,0.41821,2391.1,2390.7,4.53]
[1725993708553,0.41822,2391.0,2390.7,4.53]
[1725993708752,1.04536,2391.4,2390.3,0.41832]
[1725993708753,1.04536,2391.4,2390.3,4.53]
[1725993708962,0.41829,2390.6,2390.3,4.53]
[1725993709168,0.41828,2390.7,2390.3,4.53]
[1725993709364,0.3791,2391.3,2389.7,4.53]
[1725993709557,0.3768,2390.6,2389.7,4.53]
[1725993709756,0.3768,2390.6,2389.8,6.5]
[1725993709960,0.41834,2390.3,2389.8,6.5]
[1725993710169,0.3768,2390.6,2389.8,6.5]
[1725993710466,0.41832,2390.4,2389.8,6.91841]
[1725993710667,0.3768,2390.6,2390.0,4.53]
[1725993710970,0.3768,2390.6,2390.1,0.41836]
[1725993711159,0.41828,2390.6,2390.0,4.94837]
[1725993711364,0.4183,2390.5,2390.0,4.53]
[1725993711562,0.3704,2391.0,2390.1,0.41835]
[1725993711861,0.41828,2390.6,2390.0,4.53]
[1725993712061,0.4183,2390.5,2390.0,4.94838]
[1725993712268,1.04557,2390.9,2390.0,4.94838]
[1725993712455,0.3704,2391.0,2390.0,4.94838]
[1725993712456,1.04562,2390.8,2390.0,4.53]
[1725993712655,0.3704,2391.0,2390.0,4.53]
[1725993712863,0.41831,2390.5,2390.0,4.53]
[1725993713170,1.04562,2390.8,2390.0,4.53]
[1725993713561,0.41827,2390.7,2390.2,0.41834]
[1725993713761,0.41827,2390.7,2390.0,4.53]
[1725993713762,0.41828,2390.6,2390.1,0.41835]
[1725993714073,0.4183,2390.5,2390.0,4.94838]
[1725993714565,1.04524,2391.7,2390.3,4.53]
[1725993714772,0.3879,2391.6,2390.7,4.94825]
[1725993715166,0.41819,2391.1,2390.7,4.53]
[1725993715768,0.41818,2391.2,2390.7,4.53]
[1725993715963,0.3879,2391.6,2390.7,4.53]
[1725993716179,0.41815,2391.4,2390.9,0.41822]
[1725993716356,0.41815,2391.4,2390.8,0.41823]
[1725993716763,0.41816,2391.3,2390.8,0.41823]
[1725993716962,0.3879,2391.6,2390.9,0.41821]
[1725993717162,0.3879,2391.6,2391.0,6.5]
[1725993717371,1.04539,2391.4,2391.0,6.5]
[1725993717758,0.4182,2391.1,2390.7,4.53]
[1725993718160,1.04543,2391.3,2390.7,4.53]
[1725993718374,0.41822,2391.0,2390.7,4.53]
[1725993718566,0.3879,2391.6,2390.1,0.3659]
[1725993718780,4.53,2391.8,2390.1,0.3659]
[1725993718781,1.0452,2391.8,2390.8,4.53]
[1725993719065,1.04522,2391.7,2391.2,4.53]
[1725993719265,0.41815,2391.4,2391.2,4.53]
[1725993719474,0.3728,2391.9,2391.2,4.94817]
[1725993719670,0.41809,2391.7,2391.2,4.94817]
[1725993719870,1.78554,2392.2,2391.2,4.53]
[1725993720065,0.41806,2391.9,2391.2,4.53]
[1725993720276,0.4181,2391.6,2391.2,4.53]
[1725993720473,1.78552,2392.2,2391.2,4.53]
[1725993720775,1.18794112,2392.3,2391.5,4.53]
[1725993721271,1.04505,2392.1,2391.5,4.53]
[1725993721466,1.18794112,2392.3,2391.1,4.53]
[1725993721467,1.04501,2392.2,2391.1,4.53]
[1725993721667,1.04509,2392.0,2391.1,4.53]
[1725993721865,0.41813,2391.5,2391.1,4.53]
[1725993722069,0.41811,2391.6,2391.1,4.94819]
[1725993722272,1.04518,2391.8,2391.1,4.53]
[1725993722575,0.3667,2391.9,2390.4,11.03]
[1725993722765,0.41823,2390.9,2390.4,11.44831]
[1725993722960,1.04528,2391.6,2390.4,6.5]
[1725993723174,0.41831,2390.5,2390.1,4.53]
[1725993723378,1.04548,2391.2,2390.1,4.53]
[1725993723577,1.04529,2391.6,2390.4,4.94831]
[1725993723578,0.41824,2390.9,2390.4,4.94831]
[1725993723877,0.41825,2390.8,2390.4,4.94831]
[1725993724066,1.04532,2391.5,2390.4,4.53]
[1725993724275,1.04536,2391.4,2390.4,4.53]
[1725993724578,0.41827,2390.7,2390.4,4.53]
[1725993724965,0.793,2391.7,2390.5,13.04339845]
[1725993724966,0.4009,2391.7,2390.5,13.04339845]
[1725993725166,0.3667,2391.9,2391.5,0.41811]
[1725993725367,0.3667,2391.9,2391.4,0.41813]
[1725993725368,0.78475,2391.9,2391.4,0.41813]
[1725993725580,0.3631,2392.8,2391.3,4.53]
[1725993725581,1.04495,2392.4,2391.3,4.53]
[1725993725777,1.04495,2392.4,2391.7,4.53]
[1725993725977,1.60593112,2392.3,2391.7,4.94808]
[1725993726165,1.18794112,2392.3,2391.8,0.41807]
[1725993726364,1.18794112,2392.3,2391.7,4.53]
[1725993726570,1.18794112,2392.3,2392.0,4.53]
[1725993726966,1.18794112,2392.3,2392.0,8.71]
[1725993727173,4.53,2394.0,2392.0,10.53]
[1725993727476,4.53,2394.0,2392.1,8.61983971]
[1725993727477,1.04471,2392.9,2392.1,8.61983971]
[1725993727670,1.04471,2392.9,2391.7,4.94808]
[1725993727671,0.41796,2392.5,2391.7,4.94808]
[1725993727868,4.53,2393.3,2391.7,4.53]
[1725993728174,1.04493,2392.4,2391.4,0.41813]
[1725993728375,1.04493,2392.4,2391.3,4.53]
[1725993728569,0.41803,2392.1,2391.6,8.61893136]
[1725993728769,0.4009,2392.7,2391.4,8.61893136]
[1725993729077,0.4009,2392.7,2391.7,4.53]
[1725993729378,0.418,2392.2,2391.7,11.03]
[1725993729569,0.418,2392.3,2391.7,11.03]
[1725993729772,0.3998,2392.6,2391.7,11.03]
[1725993730373,0.3998,2392.6,2391.7,6.5]
[1725993730577,0.3998,2392.6,2391.3,4.53]
[1725993730578,1.04487,2392.5,2391.3,4.53]
[1725993730773,0.4181,2391.7,2391.3,4.53]
[1725993731168,0.3855,2392.4,2391.3,4.53]
[1725993731169,1.04497,2392.3,2391.3,4.53]
[1725993731472,1.04497,2392.3,2390.6,0.4946]
[1725993731473,1.04516,2391.9,2391.0,4.53]
[1725993731673,0.41806,2391.9,2391.2,0.41816]
[1725993731878,1.04497,2392.3,2391.1,6.5]
[1725993732082,0.41806,2391.9,2391.3,4.53]
[1725993732380,1.04497,2392.3,2391.3,4.53]
[1725993732583,0.41805,2391.9,2391.3,4.53]
[1725993732781,1.04501,2392.2,2391.3,4.53]
[1725993732970,0.41807,2391.8,2391.3,4.53]
[1725993733166,0.3855,2392.4,2391.3,4.53]
[1725993733369,0.3855,2392.4,2391.3,4.94815]
[1725993733370,0.41804,2392.0,2391.3,4.94815]
[1725993733770,0.41805,2391.9,2391.3,4.94815]
[1725993733983,1.04505,2392.1,2391.0,4.53]
[1725993734276,0.41812,2391.5,2391.0,4.53]
[1725993734579,0.41813,2391.5,2391.1,6.5]
[1725993734773,0.3855,2392.4,2391.1,6.5]
[1725993734774,0.41815,2391.4,2391.1,6.5]
[1725993734971,1.04527,2391.6,2391.0,4.53]
[1725993735169,0.364,2391.8,2391.0,4.53]
[1725993735379,1.04527,2391.6,2391.1,6.5]
[1725993735577,1.04536,2391.4,2390.6,4.9148]
[1725993735875,0.364,2391.8,2390.6,4.53]
[1725993736084,0.364,2391.8,2390.3,4.53]
[1725993736274,0.41827,2390.7,2390.3,4.53]
[1725993736471,2.45443,2391.8,2390.3,4.53]
[1725993736472,0.41828,2390.6,2390.4,6.5]
[1725993736672,1.04532,2391.5,2390.4,6.5]
[1725993736873,0.41825,2390.8,2390.4,6.5]
[1725993737079,0.41823,2390.9,2390.4,6.5]
[1725993737779,0.41822,2391.0,2390.6,4.53]
[1725993737988,1.42847,2391.6,2390.6,4.53]
[1725993738281,0.4182,2391.1,2390.6,4.53]
[1725993738480,0.3832,2391.6,2391.0,4.53]
[1725993738684,0.364,2391.8,2391.0,4.53]
[1725993738970,1.40921,2391.8,2391.0,4.53]
[1725993739169,0.41815,2391.4,2391.0,4.53]
[1725993739573,1.04522,2391.7,2391.0,4.53]
[1725993739779,0.41812,2391.6,2391.0,4.94821]
[1725993739975,0.364,2391.8,2391.0,4.53]
[1725993740179,0.41822,2391.0,2390.6,4.53]
[1725993740483,0.41826,2390.8,2390.4,6.5]
[1725993741080,1.04544,2391.2,2390.4,6.5]
[1725993741380,1.04549,2391.1,2390.4,6.5]
[1725993741580,1.04557,2390.9,2390.4,6.5]
[1725993741778,0.41829,2390.6,2390.4,6.5]
[1725993741978,0.3936,2391.0,2390.4,6.5]
[1725993741979,1.04562,2390.8,2390.4,6.5]
[1725993742180,0.4183,2390.5,2390.4,6.5]
[1725993742380,0.3936,2391.0,2390.0,4.53]
[1725993742682,1.43913,2391.0,2390.0,4.53]
[1725993742880,1.43913,2391.0,2389.3,0.1228]
[1725993742881,4.1832,2390.9,2389.3,4.6528]
[1725993743081,4.1832,2390.9,2389.0,0.49130747]
[1725993743082,0.41846,2389.6,2389.0,4.53]
[1725993743278,3.74528305,2390.5,2389.0,4.53]
[1725993743478,1.0459,2390.2,2389.0,4.53]
[1725993743674,0.7755,2390.1,2389.0,4.53]
[1725993743877,0.41843,2389.8,2389.0,4.94855]
[1725993744082,0.7755,2390.1,2389.3,4.53]
[1725993744287,2.69950305,2390.6,2388.7,0.1228]
[1725993744288,2.69950305,2390.8,2389.9,4.53]
[1725993744477,3.24875683,2391.3,2390.3,4.53]
[1725993744478,0.41827,2390.7,2390.3,4.53]
[1725993744677,0.3648,2391.0,2390.3,4.53]
[1725993744678,0.41825,2390.8,2390.3,4.53]
[1725993744880,0.3648,2391.0,2390.3,4.53]
[1725993745487,0.3648,2391.0,2389.9,11.03]
[1725993745785,0.41832,2390.4,2389.9,11.03]
[1725993745985,1.04571,2390.6,2389.9,6.5]
[1725993746197,0.41836,2390.2,2389.6,4.53]
[1725993746685,0.3811,2390.5,2389.7,6.5]
[1725993746893,0.41836,2390.2,2389.7,6.5]
[1725993747084,0.3811,2390.5,2389.7,6.5]
[1725993747390,0.41834,2390.3,2389.7,6.5]
[1725993747586,0.41834,2390.3,2389.6,4.53]
[1725993747883,0.79941,2390.5,2389.7,0.41843]
[1725993748091,0.3648,2391.0,2390.3,4.53]
[1725993748478,0.41824,2390.9,2390.3,4.53]
[1725993748679,1.04549,2391.1,2390.3,4.53]
[1725993748880,4.5838,2391.2,2389.8,6.5]
[1725993749080,0.41838,2390.1,2389.8,6.5]
[1725993749282,0.41839,2390.0,2389.8,6.5]
[1725993749586,1.04566,2390.7,2389.8,6.5]
[1725993749793,1.42002,2390.6,2389.6,4.53]
[1725993750096,0.4184,2390.0,2389.6,4.53]
[1725993750279,1.04584,2390.3,2389.2,0.41851]
[1725993750280,1.04579,2390.4,2389.7,6.5]
[1725993750483,0.3792,2390.2,2389.7,6.5]
[1725993750697,1.04597,2390.0,2389.3,8.57562389]
[1725993750990,0.3792,2390.2,2389.2,4.53]
[1725993750991,1.04592,2390.1,2389.2,4.53]
[1725993751494,0.3792,2390.2,2388.7,0.1229]
[1725993751696,0.41854,2389.2,2388.7,0.1229]
[1725993751988,1.04606,2389.8,2388.7,0.1229]
[1725993752184,1.04619,2389.5,2388.7,0.1229]
[1725993752383,0.41854,2389.2,2388.7,0.1229]
[1725993752685,1.04626,2389.4,2388.6,4.53]
[1725993752886,0.41855,2389.1,2388.6,4.53]
[1725993754182,0.3771,2389.7,2388.9,4.53]
[1725993754393,1.04592,2390.1,2388.9,4.53]
[1725993754588,0.41848,2389.5,2388.9,4.94856]
[1725993754793,0.41848,2389.5,2389.0,6.5]
[1725993754988,0.41839,2390.0,2389.0,6.5]
[1725993755189,1.0462,2389.5,2389.0,6.5]
[1725993755388,1.04601,2389.9,2389.0,6.5]
[1725993755389,0.41851,2389.3,2389.0,6.5]
[1725993755597,1.04597,2390.0,2389.0,6.5]
[1725993755893,0.41847,2389.6,2389.0,6.5]
[1725993756097,0.41846,2389.6,2389.0,6.91855]
[1725993756392,0.41853,2389.2,2389.0,6.5]
[1725993757288,0.3816,2390.1,2389.0,6.5]
[1725993757289,0.41854,2389.1,2389.0,6.5]
[1725993758093,1.04611,2389.7,2389.0,10.6856]
[1725993758297,0.3816,2390.1,2389.2,0.41851]
[1725993758298,0.41843,2389.8,2389.2,0.41851]
[1725993758496,0.3816,2390.1,2389.1,0.41853]
[1725993758497,1.04601,2389.9,2389.1,0.41853]
[1725993758695,1.04601,2389.9,2389.0,6.5]
[1725993758696,1.04604,2389.9,2389.0,6.5]
[1725993759000,0.41844,2389.7,2389.1,0.41854]
[1725993759193,0.41841,2389.9,2389.3,0.4185]
[1725993759393,0.41842,2389.8,2389.2,4.94852]
[1725993759600,1.04597,2390.0,2389.2,4.94852]
[1725993759990,0.41844,2389.7,2389.2,4.53]
[1725993760591,1.04609,2389.8,2389.0,6.5]
[1725993760998,1.04601,2389.9,2389.0,6.5]
[1725993761208,0.41848,2389.5,2389.0,6.5]
[1725993761494,0.41852,2389.3,2389.0,6.5]
[1725993761690,0.41848,2389.5,2389.0,6.5]
[1725993761993,1.04613,2389.7,2389.0,6.5]
[1725993761994,0.4185,2389.4,2389.0,6.5]
[1725993762887,0.41851,2389.3,2389.0,6.5]
[1725993763086,0.4185,2389.4,2389.0,6.5]
[1725993763487,1.04614,2389.6,2389.0,6.5]
[1725993763688,0.41851,2389.3,2389.0,6.5]
[1725993764293,0.41849,2389.5,2389.0,6.5]
[1725993764488,0.41847,2389.6,2389.0,6.91855]
[1725993764690,0.41846,2389.6,2389.0,6.91855]
[1725993764890,0.41846,2389.6,2389.1,0.41854]
[1725993765090,0.41846,2389.6,2389.0,6.91855]
[1725993765399,0.41849,2389.4,2389.0,6.5]
[1725993765597,1.04601,2389.9,2389.0,6.5]
[1725993765895,1.42755,2390.1,2389.3,4.53]
[1725993766095,0.41841,2389.9,2389.3,4.53]
[1725993766296,0.3792,2390.2,2389.5,0.41847]
[1725993766297,0.41839,2390.0,2389.5,0.41847]
[1725993766496,0.41843,2389.8,2389.4,0.41849]
[1725993766700,1.04592,2390.1,2389.3,4.53]
[1725993766902,0.41843,2389.8,2389.3,4.53]
[1725993767201,0.41843,2389.8,2389.3,4.94849]
[1725993767401,1.04598,2390.0,2389.4,0.41849]
[1725993767598,0.41843,2389.8,2389.4,0.41849]
[1725993767903,0.3792,2390.2,2389.5,0.41846]
[1725993767904,0.41841,2389.9,2389.5,0.41846]
[1725993768109,1.42511,2390.2,2389.4,0.41848]
[1725993768110,0.41843,2389.8,2389.4,0.41848]
[1725993769501,0.41844,2389.7,2389.3,4.94849]
[1725993769802,0.41844,2389.7,2389.1,8.71899775]
[1725993769803,0.41845,2389.7,2389.1,8.71899775]
[1725993770099,1.04607,2389.8,2389.1,9.13752775]
[1725993770304,1.04597,2390.0,2389.1,9.13752775]
[1725993770305,0.41848,2389.5,2389.1,9.13752775]
[1725993770500,1.04611,2389.7,2389.1,8.71899775]
[1725993770702,0.41852,2389.3,2389.1,8.71899775]
[1725993770907,0.4185,2389.4,2389.1,8.71899775]
[1725993771203,1.04611,2389.7,2389.1,8.71899775]
[1725993771204,0.41851,2389.3,2389.1,8.71899775]
[1725993771405,1.04611,2389.7,2389.1,8.71899775]
[1725993771406,0.41852,2389.2,2389.1,8.71899775]
[1725993772098,0.388,2389.9,2389.1,12.90459775]
[1725993772305,0.388,2389.9,2389.3,0.4185]
[1725993772306,1.43404,2389.9,2389.3,0.4185]
[1725993772509,0.41848,2389.5,2389.1,9.13753775]
[1725993772900,1.0461,2389.7,2389.1,9.13753775]
[1725993773096,0.41851,2389.3,2389.1,8.71899775]
[1725993773408,0.41852,2389.2,2389.1,8.71899775]
[1725993773906,0.41853,2389.2,2389.0,6.5]
[1725993774106,0.4185,2389.4,2389.0,6.5]
[1725993774303,1.04614,2389.6,2389.0,6.5]
[1725993774802,0.41853,2389.2,2389.0,6.5]
[1725993776105,0.4185,2389.4,2389.0,6.5]
[1725993776305,0.41851,2389.3,2389.0,6.5]
[1725993776899,0.4185,2389.4,2389.0,6.5]
[1725993777398,0.41849,2389.4,2389.0,6.5]
[1725993777807,0.41851,2389.3,2389.0,6.5]
[1725993778616,0.4185,2389.4,2389.0,6.5]
[1725993778910,0.384,2389.5,2389.0,6.5]
[1725993779111,2.69950305,2390.4,2389.4,4.53]
[1725993779312,2.69950305,2390.4,2389.6,0.41844]
[1725993779313,1.04582,2390.4,2389.6,0.41844]
[1725993779612,0.41839,2390.0,2389.5,0.41846]
[1725993779804,0.41838,2390.1,2389.6,0.41845]
[1725993780000,1.04579,2390.4,2389.4,4.53]
[1725993780204,0.41842,2389.8,2389.4,4.53]
[1725993780404,0.41841,2389.9,2389.4,4.94849]
[1725993780612,0.41842,2389.8,2389.4,4.94849]
[1725993780810,0.41841,2389.9,2389.4,4.94849]
[1725993781005,0.41841,2389.9,2389.4,4.53]
[1725993781205,0.41841,2389.9,2389.4,4.94848]
[1725993781606,0.41841,2389.9,2389.0,6.5]
[1725993781607,4.1848,2389.8,2389.0,6.5]
[1725993781809,1.0461,2389.7,2389.0,6.91855]
[1725993782010,0.3801,2389.8,2389.6,0.41845]
[1725993782210,2.69950305,2390.4,2389.7,4.53]
[1725993782408,4.53,2391.1,2389.1,13.0995167]
[1725993782409,0.41828,2390.6,2390.1,0.41835]
[1725993782716,0.41828,2390.6,2389.6,4.53]
[1725993782717,0.41838,2390.1,2389.6,4.53]
[1725993783023,1.04572,2390.6,2389.6,4.53]
[1725993783024,0.41839,2390.0,2389.6,4.53]
[1725993783213,1.04575,2390.5,2389.5,0.41847]
[1725993783416,1.04586,2390.3,2389.7,6.5]
[1725993783618,0.4184,2390.0,2389.7,6.5]
[1725993784008,0.41839,2390.0,2389.7,6.5]
[1725993784212,0.4184,2389.9,2389.7,6.5]
[1725993784915,0.4184,2390.0,2389.7,6.5]
[1725993785107,1.04586,2390.3,2389.7,6.5]
[1725993785108,0.41841,2389.9,2389.7,6.5]
[1725993785514,0.41842,2389.8,2389.7,6.5]
[1725993785710,0.41839,2390.0,2389.7,6.5]
[1725993786017,1.44302,2390.6,2389.7,6.5]
[1725993786224,0.3801,2390.7,2389.9,4.53]
[1725993786523,0.3801,2390.7,2390.0,0.41837]
[1725993786827,0.3875,2391.2,2390.3,4.53]
[1725993787119,0.3875,2391.2,2390.5,0.41829]
[1725993787319,0.3875,2391.2,2390.4,0.41831]
[1725993787320,0.41822,2391.0,2390.4,0.41831]
[1725993787508,0.3875,2391.2,2390.3,4.53]
[1725993787714,0.754,2391.4,2390.3,4.53]
[1725993787917,0.41816,2391.3,2390.8,0.41823]
[1725993788214,0.4182,2391.1,2390.6,4.94827]
[1725993788412,0.3744,2391.4,2390.7,0.41826]
[1725993788413,0.41818,2391.2,2390.7,0.41826]
[1725993788722,0.41823,2390.9,2390.4,0.4183]
[1725993788921,1.04546,2391.2,2390.0,4.53]
[1725993789112,0.41832,2390.4,2390.0,4.53]
[1725993789317,1.42506,2391.2,2390.1,6.5]
[1725993789318,1.04562,2390.8,2390.1,6.5]
[1725993789515,0.41832,2390.4,2390.1,6.5]
[1725993789719,0.41831,2390.5,2390.1,6.5]
[1725993790023,1.04571,2390.6,2390.1,6.5]
[1725993790214,0.41834,2390.3,2390.1,6.5]
[1725993790523,0.3744,2390.7,2390.1,6.5]
[1725993790922,0.41829,2390.6,2390.1,6.91836]